fUSD/lending_fUSD_20250208
["ID","MTS","AMOUNT","RATE_DAILY","PERIOD"]
[352328034,1739043064331,-500.0,0.00010683,2]
[352328035,1739043064341,-953.29,0.00010683,2]
[352328036,1739043064352,-500.0,0.00010683,2]
[352328037,1739043064362,-1080.65,0.00010683,2]
[352328038,1739043064376,-576.07,0.00010684,2]
[352328039,1739043064387,-2032.36,0.00010684,2]
[352328040,1739043064398,-1169.34,0.00010684,2]
[352328041,1739043064408,-897.82,0.00010684,2]
[352328042,1739043064418,-500.0,0.00010684,2]
[352328043,1739043064429,-500.0,0.00010684,2]
[352328044,1739043064635,-830.0,0.00010684,2]
[352328045,1739043064646,-948.5,0.00010684,2]
[352328046,1739043064656,-845.68,0.00010684,2]
[352328047,1739043064665,-1815.3,0.00010684,2]
[352328048,1739043064675,-1751.76,0.00010684,2]
[352328049,1739043064685,-863.25,0.00010684,2]
[352328050,1739043064694,-692.67,0.00010684,2]
[352328051,1739043064704,-1575.88,0.00010684,2]
[352328052,1739043064713,-1834.85,0.00010684,2]
[352328053,1739043064725,-779.44,0.00010684,2]
[352328054,1739043064734,-1013.19,0.00010684,2]
[352328055,1739043064745,-500.0,0.00010684,2]
[352328056,1739043064754,-1086.66,0.00010684,2]
[352328057,1739043064764,-1278.1,0.00010684,2]
[352328058,1739043064774,-2399.26,0.00010684,2]
[352328059,1739043064783,-500.0,0.00010684,2]
[352328060,1739043064792,-671.24,0.00010684,2]
[352328061,1739043064802,-500.0,0.00010684,2]
[352328062,1739043064811,-860.53,0.00010684,2]
[352328063,1739043064821,-1412.47,0.00010684,2]
[352328064,1739043064830,-1223.4,0.00010684,2]
[352328065,1739043064840,-620.81,0.00010684,2]
[352328066,1739043064849,-562.06,0.00010684,2]
[352328067,1739043064858,-152.0,0.00010703,3]
[352328068,1739043064867,-182.26997152,0.00010795,2]
[352328069,1739043064877,-1399.0,0.00010796,2]
[352328070,1739043064886,-1206.942,0.00010807,2]
[352328071,1739043064895,-521.03,0.00010819,2]
[352328072,1739043064905,-500.0,0.00010819,2]
[352328073,1739043064915,-619.25,0.00010819,2]
[352328074,1739043064925,-500.0,0.00010819,2]
[352328075,1739043064934,-845.14,0.00010819,2]
[352328076,1739043064944,-719.5,0.00010819,2]
[352328077,1739043064954,-500.0,0.00010819,2]
[352328078,1739043064963,-712.65,0.00010819,2]
[352328079,1739043064973,-500.0,0.00010819,2]
[352328080,1739043064983,-500.0,0.00010819,2]
[352328081,1739043064992,-661.8,0.00010819,2]
[352328082,1739043065002,-500.0,0.00010819,2]
[352328083,1739043065012,-500.0,0.00010819,2]
[352328084,1739043065021,-500.0,0.00010819,2]
[352328085,1739043065031,-500.0,0.00010819,2]
[352328086,1739043065040,-512.48,0.00010819,2]
[352328087,1739043065050,-572.41,0.00010819,2]
[352328088,1739043065060,-500.0,0.00010819,2]
[352328089,1739043065070,-500.0,0.00010819,2]
[352328090,1739043065079,-642.26,0.00010819,2]
[352328091,1739043065089,-1123.42,0.00010819,2]
[352328092,1739043065098,-500.0,0.00010819,2]
[352328093,1739043065108,-500.0,0.00010819,2]
[352328094,1739043065118,-777.9,0.00010819,2]
[352328095,1739043065128,-823.974585,0.00010819,2]
[352328096,1739043065138,-500.0,0.00010819,2]
[352328097,1739043065147,-500.0,0.00010819,2]
[352328098,1739043065157,-552.83,0.00010819,2]
[352328099,1739043065167,-762.13,0.00010819,2]
[352328100,1739043065176,-500.0,0.00010819,2]
[352328101,1739043065186,-500.0,0.00010819,2]
[352328102,1739043065196,-786.67,0.00010819,2]
[352328103,1739043065205,-500.0,0.00010819,2]
[352328104,1739043065215,-752.894577,0.00010819,2]
[352328105,1739043065225,-500.0,0.00010819,2]
[352328106,1739043065234,-742.31,0.00010819,2]
[352328107,1739043065244,-500.0,0.00010819,2]
[352328108,1739043065254,-500.0,0.00010819,2]
[352328109,1739043065263,-571.41,0.00010819,2]
[352328110,1739043065271,-835.53,0.00010819,2]
[352328111,1739043065282,-968.82,0.00010819,2]
[352328112,1739043065291,-500.0,0.00010819,2]
[352328113,1739043065301,-605.99,0.00010819,2]
[352328114,1739043065311,-851.48,0.00010819,2]
[352328115,1739043065320,-500.0,0.00010819,2]
[352328116,1739043065330,-500.0,0.00010819,2]
[352328117,1739043065339,-644.53,0.00010819,2]
[352328118,1739043065349,-697.9,0.00010819,2]
[352328119,1739043065363,-752.21,0.00010819,2]
[352328120,1739043065373,-500.0,0.00010819,2]
[352328121,1739043065382,-500.0,0.00010819,2]
[352328122,1739043065392,-763.93,0.00010819,2]
[352328123,1739043065402,-802.72,0.00010819,2]
[352328124,1739043065411,-500.0,0.00010819,2]
[352328125,1739043065421,-1508.05,0.00010819,2]
[352328126,1739043065431,-563.54,0.00010819,2]
[352328127,1739043065442,-500.0,0.00010819,2]
[352328128,1739043065453,-896.17,0.00010819,2]
[352328129,1739043065463,-649.25,0.00010819,2]
[352328130,1739043065473,-1421.08,0.00010819,2]
[352328131,1739043065483,-1296.16,0.00010819,2]
[352328132,1739043065493,-837.55,0.00010819,2]
[352328133,1739043065503,-500.0,0.00010819,2]
[352328134,1739043065513,-563.67,0.00010819,2]
[352328135,1739043065524,-325.60465107,0.00010819,2]
[352328136,1739043065535,-778.79,0.00010819,2]
[352328137,1739043065545,-954.36,0.00010819,2]
[352328138,1739043065555,-647.22,0.00010819,2]
[352328139,1739043065566,-736.34,0.00010819,2]
[352328140,1739043065576,-1574.15,0.00010819,2]
[352328141,1739043065586,-800.6,0.00010819,2]
[352328142,1739043065596,-981.33,0.00010819,2]
[352328143,1739043065606,-938.54,0.00010819,2]
[352328144,1739043065615,-1008.39,0.00010819,2]
[352328145,1739043065626,-500.0,0.00010819,2]
[352328146,1739043065637,-1172.95,0.00010819,2]
[352328147,1739043065647,-776.73,0.00010819,2]
[352328148,1739043065657,-2351.42,0.00010819,2]
[352328149,1739043065667,-1470.42,0.00010819,2]
[352328150,1739043065676,-756.89,0.00010819,2]
[352328151,1739043065686,-830.68,0.00010819,2]
[352328152,1739043065696,-611.75,0.00010819,2]
[352328153,1739043065705,-1327.21,0.00010819,2]
[352328154,1739043065715,-1450.77,0.00010819,2]
[352328155,1739043065726,-585.6,0.00010819,2]
[352328156,1739043065736,-1229.83,0.00010819,2]
[352328157,1739043065746,-659.24,0.00010819,2]
[352328158,1739043065756,-2123.6,0.00010819,2]
[352328159,1739043065766,-669.29,0.00010819,2]
[352328160,1739043065776,-500.0,0.00010819,2]
[352328161,1739043065786,-1113.0,0.00010819,2]
[352328162,1739043065796,-3985.16,0.00010819,2]
[352328163,1739043065806,-500.0,0.00010819,2]
[352328164,1739043065815,-1725.78,0.00010819,2]
[352328165,1739043065825,-500.0,0.00010819,2]
[352328166,1739043065835,-500.0,0.00010819,2]
[352328167,1739043065845,-2160.17,0.00010819,2]
[352328168,1739043065854,-500.0,0.00010819,2]
[352328169,1739043065864,-1179.79,0.00010819,2]
[352328170,1739043065874,-1817.34,0.00010819,2]
[352328171,1739043065883,-558.14,0.00010819,2]
[352328172,1739043065893,-826.7,0.00010819,2]
[352328173,1739043065902,-2208.19,0.00010819,2]
[352328174,1739043065913,-1581.51,0.00010819,2]
[352328175,1739043065923,-2813.03,0.00010819,2]
[352328176,1739043065932,-500.0,0.00010819,2]
[352328177,1739043065943,-500.0,0.00010819,2]
[352328178,1739043065952,-929.72,0.00010819,2]
[352328179,1739043065962,-1073.87,0.00010819,2]
[352328180,1739043065975,-1284.77,0.00010819,2]
[352328181,1739043065986,-904.23,0.00010819,2]
[352328182,1739043065995,-1492.59,0.00010819,2]
[352328183,1739043066005,-1214.2,0.00010819,2]
[352328184,1739043066015,-1224.9,0.00010819,2]
[352328185,1739043066025,-425.08,0.00010819,2]
[352328186,1739043066035,-2931.99,0.00010819,2]
[352328187,1739043066044,-803.19,0.00010819,2]
[352328188,1739043066054,-1092.49,0.00010819,2]
[352328189,1739043066063,-658.36,0.00010819,2]
[352328190,1739043066073,-892.2,0.00010819,2]
[352328191,1739043066083,-947.86,0.00010819,2]
[352328192,1739043066092,-636.37,0.00010819,2]
[352328193,1739043066102,-500.0,0.00010819,2]
[352328194,1739043066112,-500.0,0.00010819,2]
[352328195,1739043066122,-733.53,0.00010819,2]
[352328196,1739043066131,-1365.88,0.00010819,2]
[352328197,1739043066142,-1204.67,0.00010819,2]
[352328198,1739043066152,-500.0,0.00010819,2]
[352328199,1739043066161,-500.0,0.00010819,2]
[352328200,1739043066171,-1240.06,0.00010819,2]
[352328201,1739043066180,-531.84,0.00010819,2]
[352328202,1739043066190,-1628.18,0.00010819,2]
[352328203,1739043066200,-1775.76,0.00010819,2]
[352328204,1739043066210,-873.47,0.00010819,2]
[352328205,1739043066219,-500.0,0.00010819,2]
[352328206,1739043066233,-1476.66,0.00010819,2]
[352328207,1739043066243,-1221.84,0.00010819,2]
[352328208,1739043066252,-500.0,0.00010819,2]
[352328209,1739043066261,-500.0,0.0001082,2]
[352328210,1739043066271,-500.0,0.0001082,2]
[352328211,1739043066280,-500.0,0.0001082,2]
[352328212,1739043066290,-500.0,0.0001082,2]
[352328213,1739043066299,-500.0,0.0001082,2]
[352328214,1739043066309,-500.0,0.0001082,2]
[352328215,1739043066319,-305.52273619,0.0001082,2]
[352328216,1739043066328,-500.0,0.0001082,2]
[352328217,1739043066338,-500.0,0.0001082,2]
[352328218,1739043066348,-500.0,0.0001082,2]
[352328219,1739043066362,-500.0,0.0001082,2]
[352328220,1739043066372,-500.0,0.0001082,2]
[352328221,1739043066383,-500.0,0.0001082,2]
[352328222,1739043066393,-500.0,0.0001082,2]
[352328223,1739043066403,-500.0,0.0001082,2]
[352328224,1739043066412,-500.0,0.0001082,2]
[352328225,1739043066422,-500.0,0.0001082,2]
[352328226,1739043066432,-500.0,0.0001082,2]
[352328227,1739043066441,-500.0,0.0001082,2]
[352328228,1739043066451,-500.0,0.0001082,2]
[352328229,1739043066460,-500.0,0.0001082,2]
[352328230,1739043066470,-500.0,0.0001082,2]
[352328231,1739043066482,-500.0,0.0001082,2]
[352328232,1739043066491,-517.61,0.0001082,2]
[352328233,1739043066502,-500.0,0.0001082,2]
[352328234,1739043066511,-629.64,0.0001082,2]
[352328235,1739043066521,-500.0,0.0001082,2]
[352328236,1739043066530,-500.0,0.0001082,2]
[352328237,1739043066540,-500.0,0.0001082,2]
[352328238,1739043066550,-781.39,0.0001082,2]
[352328239,1739043066560,-500.0,0.0001082,2]
[352328240,1739043066570,-500.0,0.0001082,2]
[352328241,1739043066579,-929.63,0.0001082,2]
[352328242,1739043066589,-500.0,0.0001082,2]
[352328243,1739043066598,-500.0,0.0001082,2]
[352328244,1739043066608,-619.68,0.0001082,2]
[352328245,1739043066617,-500.0,0.0001082,2]
[352328246,1739043066626,-506.68,0.0001082,2]
[352328247,1739043066635,-500.0,0.0001082,2]
[352328248,1739043066646,-738.39,0.0001082,2]
[352328249,1739043066655,-500.0,0.0001082,2]
[352328250,1739043066666,-500.0,0.0001082,2]
[352328251,1739043066675,-500.0,0.0001082,2]
[352328252,1739043066684,-877.37,0.0001082,2]
[352328253,1739043066694,-500.0,0.0001082,2]
[352328254,1739043066704,-638.94,0.0001082,2]
[352328255,1739043066714,-500.0,0.0001082,2]
[352328256,1739043066723,-589.32,0.0001082,2]
[352328257,1739043066733,-500.0,0.0001082,2]
[352328258,1739043066742,-500.0,0.0001082,2]
[352328259,1739043066753,-500.0,0.0001082,2]
[352328260,1739043066762,-601.77,0.0001082,2]
[352328261,1739043066771,-570.39559764,0.0001082,2]
[352328262,1739043066780,-500.0,0.0001082,2]
[352328263,1739043066790,-500.0,0.0001082,2]
[352328264,1739043066799,-500.0,0.0001082,2]
[352328265,1739043066809,-500.0,0.0001082,2]
[352328266,1739043066818,-500.0,0.0001082,2]
[352328267,1739043066828,-500.0,0.0001082,2]
[352328268,1739043066838,-500.0,0.0001082,2]
[352328269,1739043066848,-500.0,0.0001082,2]
[352328270,1739043066858,-500.0,0.0001082,2]
[352328271,1739043066868,-500.0,0.0001082,2]
[352328272,1739043066877,-500.0,0.0001082,2]
[352328273,1739043066887,-500.0,0.0001082,2]
[352328274,1739043066896,-500.0,0.0001082,2]
[352328275,1739043066906,-179.09702971,0.0001082,2]
[352328276,1739043066915,-500.0,0.0001082,2]
[352328277,1739043066926,-500.0,0.0001082,2]
[352328278,1739043066935,-500.0,0.0001082,2]
[352328279,1739043066945,-500.0,0.0001082,2]
[352328280,1739043066954,-500.0,0.0001082,2]
[352328281,1739043066964,-503.38,0.0001082,2]
[352328282,1739043066975,-500.0,0.0001082,2]
[352328283,1739043066985,-588.2,0.0001082,2]
[352328284,1739043066995,-500.0,0.0001082,2]
[352328285,1739043067004,-500.0,0.0001082,2]
[352328286,1739043067014,-511.44,0.0001082,2]
[352328287,1739043067024,-632.96,0.0001082,2]
[352328288,1739043067033,-500.0,0.0001082,2]
[352328289,1739043067043,-744.21,0.0001082,2]
[352328290,1739043067052,-500.0,0.0001082,2]
[352328291,1739043067062,-500.0,0.0001082,2]
[352328292,1739043067123,-500.0,0.0001082,2]
[352328293,1739043067134,-500.0,0.0001082,2]
[352328294,1739043067143,-500.0,0.0001082,2]
[352328295,1739043067153,-500.01542799,0.0001082,2]
[352328296,1739043067162,-666.37,0.0001082,2]
[352328297,1739043067172,-855.64,0.0001082,2]
[352328298,1739043067182,-500.0,0.0001082,2]
[352328299,1739043067192,-761.03,0.0001082,2]
[352328300,1739043067201,-777.48,0.0001082,2]
[352328301,1739043067211,-500.0,0.0001082,2]
[352328302,1739043067220,-1179.22,0.0001082,2]
[352328303,1739043067232,-500.0,0.0001082,2]
[352328304,1739043067242,-597.46,0.0001082,2]
[352328305,1739043067251,-500.0,0.0001082,2]
[352328306,1739043067261,-500.0,0.0001082,2]
[352328307,1739043067270,-500.0,0.0001082,2]
[352328308,1739043067280,-518.68280226,0.0001082,2]
[352328309,1739043067289,-2670.91,0.0001082,2]
[352328310,1739043067298,-500.0,0.0001082,2]
[352328311,1739043067308,-4010.65,0.0001082,2]
[352328312,1739043067318,-817.59,0.0001082,2]
[352328313,1739043067328,-500.0,0.0001082,2]
[352328314,1739043067337,-1271.98,0.0001082,2]
[352328315,1739043067347,-940.49,0.0001082,2]
[352328316,1739043067357,-476.67341991,0.0001082,2]
[352328317,1739043067370,-500.0,0.0001082,2]
[352328318,1739043067380,-1335.61,0.0001082,2]
[352328319,1739043067390,-500.0,0.0001082,2]
[352328320,1739043067400,-989.3,0.0001082,2]
[352328321,1739043067410,-500.0,0.0001082,2]
[352328322,1739043067419,-745.3,0.0001082,2]
[352328323,1739043067429,-1381.9,0.0001082,2]
[352328324,1739043067439,-500.0,0.0001082,2]
[352328325,1739043067451,-500.0,0.0001082,2]
[352328326,1739043067461,-2891.60976,0.0001082,2]
[352328327,1739043067471,-500.0,0.0001082,2]
[352328328,1739043067482,-405.31408095,0.0001082,2]
[352328329,1739043067492,-500.0,0.0001082,2]
[352328330,1739043067501,-1083.73,0.0001082,2]
[352328331,1739043067511,-1420.49,0.0001082,2]
[352328332,1739043067521,-500.0,0.0001082,2]
[352328333,1739043067530,-500.0,0.0001082,2]
[352328334,1739043067541,-805.22,0.0001082,2]
[352328335,1739043067551,-977.83,0.0001082,2]
[352328336,1739043067561,-1000.0,0.0001082,2]
[352328337,1739043067570,-500.0,0.0001082,2]
[352328338,1739043067579,-1078.77,0.0001082,2]
[352328339,1739043067589,-500.0,0.0001082,2]
[352328340,1739043067598,-872.95,0.0001082,2]
[352328341,1739043067607,-1162.31,0.0001082,2]
[352328342,1739043067618,-1205.36,0.0001082,2]
[352328343,1739043067628,-1261.93,0.0001082,2]
[352328344,1739043067639,-970.23,0.0001082,2]
[352328345,1739043067649,-758.61,0.0001082,2]
[352328346,1739043067658,-628.69,0.0001082,2]
[352328347,1739043067668,-644.28,0.0001082,2]
[352328348,1739043067678,-500.0,0.0001082,2]
[352328349,1739043067687,-500.0,0.0001082,2]
[352328350,1739043067697,-953.29,0.0001082,2]
[352328351,1739043067706,-500.0,0.0001082,2]
[352328352,1739043067715,-1080.65,0.0001082,2]
[352328353,1739043067726,-576.07,0.00010821,2]
[352328354,1739043067735,-2032.36,0.00010821,2]
[352328355,1739043067745,-1169.34,0.00010821,2]
[352328356,1739043067754,-897.82,0.00010821,2]
[352328357,1739043067763,-500.0,0.00010821,2]
[352328358,1739043067772,-500.0,0.00010821,2]
[352328359,1739043067782,-830.0,0.00010821,2]
[352328360,1739043067791,-948.5,0.00010821,2]
[352328361,1739043067801,-845.68,0.00010821,2]
[352328362,1739043067810,-1815.3,0.00010821,2]
[352328363,1739043067819,-1751.76,0.00010821,2]
[352328364,1739043067828,-863.25,0.00010821,2]
[352328365,1739043067837,-692.67,0.00010821,2]
[352328366,1739043067847,-1575.88,0.00010821,2]
[352328367,1739043067857,-1834.85,0.00010821,2]
[352328368,1739043067868,-779.44,0.00010821,2]
[352328369,1739043067878,-1013.19,0.00010821,2]
[352328370,1739043067888,-500.0,0.00010821,2]
[352328371,1739043067899,-1086.66,0.00010821,2]
[352328372,1739043067909,-1278.1,0.00010821,2]
[352328373,1739043067919,-2399.26,0.00010821,2]
[352328374,1739043067929,-500.0,0.00010821,2]
[352328375,1739043067939,-671.24,0.00010821,2]
[352328376,1739043067948,-500.0,0.00010821,2]
[352328377,1739043067958,-860.53,0.00010821,2]
[352328378,1739043067968,-1412.47,0.00010821,2]
[352328379,1739043067979,-1223.4,0.00010821,2]
[352328380,1739043067989,-620.81,0.00010821,2]
[352328381,1739043067999,-1794.70597357,0.00010824,2]
[352328382,1739043068009,-4024.0,0.00010825,2]
[352328383,1739043068018,-701.851,0.00010825,2]
[352328384,1739043068028,-150.0,0.00010825,2]
[352328385,1739043068038,-151.0,0.00010825,2]
[352328386,1739043068049,-1108.0,0.00010825,2]
[352328387,1739043068059,-568.0,0.00010825,2]
[352328388,1739043068068,-1431.85310354,0.0001083,2]
[352328389,1739043068078,-1702.88865395,0.0001083,2]
[352328390,1739043068087,-1794.70597357,0.00010831,2]
[352328391,1739043068096,-200.0,0.00010833,2]
[352328392,1739043068106,-1431.85310354,0.00010837,2]
[352328393,1739043068115,-2613.05062386,0.0001084,2]
[352328394,1739043068124,-1702.88865395,0.00010843,2]
[352328395,1739043068135,-3589.41194713,0.00010844,2]
[352328396,1739043068145,-2613.05062386,0.00010845,2]
[352328397,1739043068155,-56466.51516777,0.00010846,2]
[352328398,1739043068164,-10184.4297832,0.00010847,2]
[352328399,1739043068174,-15521.67074045,0.0001085,2]
[352328400,1739043068194,-545.855405,0.0001085,2]
[352328401,1739043068213,-1386.83312684,0.00010832,2]
[352328402,1739043068223,-13115.91687316,0.0001085,2]
[352328403,1739043068717,-274.47688451,8.973e-05,2]
[352328404,1739043068735,-1211.65,8.973e-05,2]
[352328405,1739043068753,-381.49309526,8.973e-05,2]
[352328406,1739043068764,-650.59750741,8.973e-05,2]
[352328407,1739043068775,-401.64479222,8.973e-05,2]
[352328408,1739043068786,-378.42181457,8.973e-05,2]
[352328409,1739043068798,-282.9,8.973e-05,2]
[352328410,1739043068809,-1418.81590603,8.973e-05,2]
[352328411,1739043068819,-1050.11,9.999e-05,2]
[352328412,1739043068828,-500.0,9.999e-05,2]
[352328413,1739043068837,-500.0,0.00010134,2]
[352328414,1739043068847,-1050.11,0.00010136,2]
[352328415,1739043068857,-500.0,0.00010136,2]
[352328416,1739043068866,-500.0,0.00010271,2]
[352328417,1739043068876,-1050.11,0.00010273,2]
[352328418,1739043068887,-459.44,0.00010273,2]
[352328419,1739043068896,-1050.11,0.0001041,2]
[352328420,1739043068906,-314.87726294,0.00010488,2]
[352328421,1739043068917,-1050.11,0.00010547,2]
[352328422,1739043068926,-1050.11,0.00010684,2]
[352328423,1739043068937,-562.06,0.00010821,2]
[352328424,1739043068947,-1050.11,0.00010821,2]
[352328425,1739043068956,-4686.01626064,0.0001085,2]
[352328426,1739043068979,-297.16,0.00010408,2]
[352328427,1739043474034,500.0,0.0002,120]
[352328428,1739043905422,-300.0,8.219e-05,2]
[352328429,1739043905446,-909.92,8.219e-05,2]
[352328430,1739043905469,-8790.08,8.22e-05,2]
[352328431,1739043906388,-511.92,8.22e-05,2]
[352328432,1739043906412,-500.0,8.22e-05,2]
[352328433,1739043906436,-1400.0,8.22e-05,2]
[352328434,1739043906458,-3879.866,8.699e-05,2]
[352328435,1739043906482,-488.879,8.851e-05,2]
[352328436,1739043906506,-700.0,8.857e-05,2]
[352328437,1739043906536,-150.0,8.972e-05,2]
[352328438,1739043906561,-2369.335,8.973e-05,2]
[352328439,1739043907244,-10000.0,8.973e-05,2]
[352328440,1739043911188,-150.0,8.822e-05,2]
[352328441,1739043911210,-2227.1518,8.973e-05,2]
[352328442,1739043911235,-5000.0,8.973e-05,2]
[352328443,1739043970979,2622.8482,8.973e-05,2]
[352328595,1739044231455,-1300.0,8.22e-05,2]
[352328596,1739044231465,-2500.0,8.851e-05,2]
[352328597,1739044231474,-2377.0466,8.973e-05,2]
[352328598,1739044231483,-4248.61186138,8.973e-05,2]
[352328599,1739044231509,-1101.0,8.973e-05,2]
[352328600,1739044231521,-284.24426,8.973e-05,2]
[352328601,1739044231532,-262.18282224,8.973e-05,2]
[352328602,1739044231544,-14021.5236,8.973e-05,2]
[352328603,1739044231555,-1347.13525855,8.973e-05,2]
[352328604,1739044231568,-2804.96328374,8.973e-05,2]
[352328605,1739044231579,-2224.44411409,8.973e-05,2]
[352328606,1739044231588,-500.0,9.041e-05,2]
[352328607,1739044231597,-500.0,9.042e-05,2]
[352328608,1739044231606,-165.58,9.089e-05,2]
[352328609,1739044231615,-183.92,9.253e-05,2]
[352328610,1739044231625,-328.34,9.264e-05,2]
[352328611,1739044231634,-1000.0,9.296e-05,2]
[352328612,1739044231643,-201.85,9.307e-05,2]
[352328613,1739044231652,-985.27,9.454e-05,2]
[352328614,1739044231662,-985.27,9.454e-05,2]
[352328615,1739044231671,-985.27,9.454e-05,2]
[352328616,1739044231680,-985.27,9.478e-05,2]
[352328617,1739044231689,-1300.0,9.59e-05,2]
[352328618,1739044231699,-985.27,9.778e-05,2]
[352328619,1739044231708,-150.0,9.888e-05,2]
[352328620,1739044231717,-500.0,9.945e-05,2]
[352328621,1739044231728,-700.0,9.953e-05,2]
[352328622,1739044231738,-500.0,9.997e-05,2]
[352328623,1739044231747,-500.0,9.997e-05,2]
[352328624,1739044231756,-567.99,9.997e-05,2]
[352328625,1739044231765,-500.0,9.997e-05,2]
[352328626,1739044231775,-500.0,9.998e-05,2]
[352328627,1739044231784,-907.64,9.998e-05,2]
[352328629,1739044231793,-500.0,9.998e-05,2]
[352328631,1739044231804,-500.0,9.998e-05,2]
[352328633,1739044231813,-500.0,9.998e-05,2]
[352328634,1739044231822,-901.49,9.998e-05,2]
[352328635,1739044231830,-500.0,9.998e-05,2]
[352328636,1739044231839,-500.0,9.998e-05,2]
[352328637,1739044231848,-500.0,9.998e-05,2]
[352328638,1739044231858,-500.0,9.998e-05,2]
[352328639,1739044231867,-500.0,9.998e-05,2]
[352328640,1739044231876,-500.0,9.998e-05,2]
[352328641,1739044231885,-503.19789908,9.998e-05,2]
[352328642,1739044231894,-500.0,9.998e-05,2]
[352328644,1739044231904,-500.0,9.998e-05,2]
[352328646,1739044231912,-500.0,9.998e-05,2]
[352328648,1739044231922,-500.0,9.998e-05,2]
[352328649,1739044231931,-500.0,9.998e-05,2]
[352328650,1739044231940,-500.0,9.998e-05,2]
[352328651,1739044231949,-500.0,9.998e-05,2]
[352328652,1739044231958,-687.33,9.998e-05,2]
[352328653,1739044231968,-500.67492405,9.998e-05,2]
[352328654,1739044231977,-500.0,9.998e-05,2]
[352328655,1739044231986,-500.0,9.998e-05,2]
[352328656,1739044231996,-500.0,9.998e-05,2]
[352328657,1739044232006,-500.0,9.998e-05,2]
[352328658,1739044232015,-500.0,9.998e-05,2]
[352328659,1739044232024,-500.0,9.998e-05,2]
[352328660,1739044232034,-500.0,9.998e-05,2]
[352328661,1739044232043,-500.0,9.998e-05,2]
[352328662,1739044232052,-500.0,9.998e-05,2]
[352328663,1739044232061,-500.0,9.998e-05,2]
[352328664,1739044232071,-500.0,9.998e-05,2]
[352328665,1739044232080,-500.0,9.998e-05,2]
[352328666,1739044232089,-500.0,9.998e-05,2]
[352328667,1739044232098,-1014.06,9.998e-05,2]
[352328668,1739044232107,-500.0,9.998e-05,2]
[352328669,1739044232117,-500.0,9.998e-05,2]
[352328670,1739044232126,-500.0,9.998e-05,2]
[352328671,1739044232135,-500.0,9.998e-05,2]
[352328672,1739044232145,-762.74,9.998e-05,2]
[352328673,1739044232154,-500.0,9.998e-05,2]
[352328674,1739044232164,-500.0,9.998e-05,2]
[352328675,1739044232173,-500.0,9.998e-05,2]
[352328676,1739044232182,-500.17750686,9.998e-05,2]
[352328677,1739044232191,-500.0,9.998e-05,2]
[352328678,1739044232202,-500.0,9.998e-05,2]
[352328679,1739044232211,-500.0,9.998e-05,2]
[352328680,1739044232221,-500.0,9.998e-05,2]
[352328681,1739044232230,-792.79,9.998e-05,2]
[352328682,1739044232239,-500.0,9.998e-05,2]
[352328683,1739044232248,-447.0957526,9.998e-05,2]
[352328684,1739044232257,-312.6246228,9.998e-05,2]
[352328685,1739044232267,-500.0,9.998e-05,2]
[352328686,1739044232277,-500.0,9.998e-05,2]
[352328687,1739044232286,-500.0,9.998e-05,2]
[352328688,1739044232295,-500.0,9.998e-05,2]
[352328689,1739044232305,-526.65331739,9.998e-05,2]
[352328690,1739044232314,-500.0,9.998e-05,2]